[Event "Czech Open-GM 2022"]
[Site "Pardubice"]
[Date "2022.07.24"]
[Round "3.26"]
[White "Bujnoch, Radek"]
[Black "Claridge-Hansen, William"]
[Result "1-0"]
[ECO "E10"]
[WhiteElo "2191"]
[BlackElo "2345"]
[Annotator "TA"]
[PlyCount "65"]
[EventDate "2022.07.22"]
[EventType "swiss"]
[EventCountry "CZE"]
[SourceTitle "playchess.com"]
[Source "ChessBase"]
[SourceQuality "1"]
[TimeControl "40/5400+30:1800+30"]

{[%evp 9,65,14,9,14,8,12,6,12,2,7,9,0,11,6,13,0,17,0,0,-17,0,-25,-12,-27,-16,-19,-7,-8,11,9,82,94,92,81,168,170,215,204,236,249,306,318,318,313,428,422,406,415,400,389,523,496,1509,1575,1484,1442,1336,1252]} 1. d4 {[%emt 0:00:03]} Nf6 {[%emt 0:00:14]} 2. c4 {[%emt 0:00:07][%cal Bc2c4,Bc4c5,Bc5b6][%mdl 32]} e6 {[%emt 0:00:20]} 3. Nf3 {[%emt 0:00:07]} a6 {[%emt 0:01:20]} 4. Nc3 {[%emt 0:17:03]} d5 {[%emt 0:00:28]} 5. c5 {[%emt 0:01:11]} b6 {[%emt 0:01:11]} 6. cxb6 {[%emt 0:00:06] D37: Queen's Gambit Declined: 5 Bf4.} c5 {[%emt 0:01:27]} (6... Nbd7 7. bxc7 Qxc7 8. Bd2 $16) 7. Bf4 {[%emt 0:00:07] Threatens to win with Bc7.} Bd6 {[%emt 0:01:19] Prevents Bc7.} 8. Bxd6 {[%emt 0:00:57] The position is equal.} Qxd6 {[%emt 0:00:07]} 9. dxc5 {[%emt 0:00:06]} Qxc5 {[%emt 0:00:09]} 10. Qd4 {[%emt 0:01:46]} Qd6 {[%emt 0:00:54]} 11. e3 {[%emt 0:05:51][%cal Of1b5]} Nbd7 {[%emt 0:01:44]} 12. Be2 {[%emt 0:02:58]} O-O {[%emt 0:08:51]} 13. O-O {[%emt 0:00:22]} e5 {[%emt 0:02:27] [#]} 14. Qh4 $146 {[%emt 0:12:04]} ({Predecessor:} 14. Qd2 Nxb6 15. b3 Bb7 16. Rfd1 Rfe8 17. Rac1 h6 18. h3 Rad8 19. Qb2 Qe7 20. Na4 Nxa4 21. bxa4 {½-½ (56) Giri,A (2776)-Le,Q (2709) chess24.com INT 2021}) 14... Qxb6 {[%emt 0:06:19]} 15. b3 {[%emt 0:01:46]} Bb7 {[%emt 0:11:25]} 16. Rac1 {[%emt 0:03:54]} Rfe8 {[%emt 0:03:30]} 17. Qa4 {[%emt 0:02:50]} Rac8 {[%emt 0:08:34]} 18. Rfd1 {[%emt 0:02:19]} Nf8 {[%emt 0:07:38]} 19. Qa3 {[%emt 0:08:15]} Ng6 {[%emt 0:10:59]} (19... Qd8 $11) 20. Na4 $16 {[%emt 0:01:41]} Qa7 {[%emt 0:00:52][%cal Od5d4]} 21. Nc5 {[%emt 0:02:28] White is more active.} d4 {[%emt 0:01:58]} (21... Ra8 $16) 22. Nxb7 $18 {[%emt 0:02:51]} ({Not} 22. exd4 Nf4 23. Bf1 Nh3+ 24. gxh3 Bxf3 $11) 22... Qxb7 {[%emt 0:04:26]} 23. Qxa6 {[%emt 0:04:05]} (23. exd4 $6 Rxc1 24. Rxc1 e4 $16) 23... Qb8 {[%emt 0:02:48][%cal Od4d3] [#]} 24. Rxc8 $1 {[%emt 0:02:58]} ({Much less strong is} 24. exd4 $6 Rxc1 25. Rxc1 e4) 24... Rxc8 {[%emt 0:00:01]} 25. exd4 {[%emt 0:01:39]} exd4 {[%emt 0:06:49]} 26. Nxd4 {[%emt 0:01:37]} Rd8 {[%emt 0:00:53]} 27. Nc6 {[%emt 0:05:14][%csl LRb8,LRd8]} Rxd1+ {[%emt 0:00:06]} 28. Bxd1 {[%emt 0:00:01]} Qe8 {[%emt 0:00:55]} 29. Be2 {[%emt 0:05:06]} Nd5 {[%emt 0:01:50]} 30. Bf1 {[%emt 0:02:21] White is clearly winning.} Qe1 {[%emt 0:01:10]} (30... Ngf4 $142 31. a4 h6) 31. Qc8+ {[%emt 0:02:26]} Nf8 {[%emt 0:00:02]} 32. Qd8 {[%emt 0:00:14]} Qe6 {[%emt 0:00:44] [#]} 33. Qxd5 $3 {[%emt 0:00:08][%mdl 512] Weighted Error Value: White=0.03 (flawless) /Black=0.30} 1-0

[Event "Czech Open-GM 2022"]
[Site "Pardubice"]
[Date "2022.07.24"]
[Round "3.27"]
[White "Farkas, Gabor"]
[Black "Elmi, Saad Abobaker"]
[Result "1-0"]
[ECO "A43"]
[WhiteElo "2335"]
[BlackElo "2123"]
[Annotator "TA"]
[PlyCount "127"]
[EventDate "2022.07.22"]
[EventType "swiss"]
[EventCountry "CZE"]
[SourceTitle "playchess.com"]
[Source "ChessBase"]
[SourceQuality "1"]
[TimeControl "40/5400+30:1800+30"]

{[%evp 10,127,64,13,33,10,98,89,82,94,78,70,76,27,175,172,228,157,185,40,66,45,56,0,136,0,0,0,0,-161,-148,-143,-111,-121,-120,-112,-121,-127,-118,-76,-67,-302,-30,-62,109,117,839,832,819,812,908,619,590,529,572,548,565,343,454,170,160,161,143,162,155,147,143,145,128,28,20,0,9,22,77,72,72,92,77,108,104,0,10,0,0,0,0,0,8,26,68,54,54,26,29963,29967,29967,0,0,0,29965,29968,29967,29969,29971,29969,29970,198,29971,29971,29972,29973,29974,29976,29976,29976,29976,29977,29980,29980]} 1. c4 {[%emt 0:00:03]} g6 {[%emt 0:00:21]} 2. d4 {[%emt 0:00:13]} Bg7 {[%emt 0:00:11]} 3. Nc3 {[%emt 0:00:23]} c5 {[%emt 0:00:39]} 4. d5 {[%emt 0:00:11]} Bxc3+ {[%emt 0:00:12]} 5. bxc3 {[%emt 0:00:05]} f5 {[%emt 0:00:09]} 6. g4 {[%emt 0:09:36]} (6. e4 $14) 6... fxg4 {[%emt 0:01:02] A40: Unusual replies to 1 d4.} 7. h3 {[%emt 0:00:20]} g3 {[%emt 0:01:00]} (7... d6 $11) 8. fxg3 $16 {[%emt 0:00:40]} Nf6 {[%emt 0:00:30] White is better.} 9. Bg2 {[%emt 0:08:57]} d6 {[%emt 0:04:44]} 10. Qd3 {[%emt 0:05:51]} Qa5 {[%emt 0:00:56]} 11. g4 {[%emt 0:05:41] [#] Inhibits Bf5.} ({White should try} 11. Bg5 $16) 11... b6 $146 {[%emt 0:07:45]} (11... h5 $1 $11) ({Predecessor:} 11... Nbd7 12. Nf3 Nb6 13. a4 Qa6 14. a5 Nxc4 15. O-O b6 16. Ng5 Nxa5 17. Qc2 O-O {0-1 (53) Pekarek,A (2440)-Voloshin,L (2430) Czech Republic 1997}) 12. Nf3 $18 {[%emt 0:06:21]} Ba6 {[%emt 0:02:48]} (12... Nbd7 $142) 13. Bf4 {[%emt 0:01:34]} Qa4 {[%emt 0:07:53]} 14. Nd2 {[%emt 0:00:43]} (14. Qe3 $1 $18 {Threatens to win with Bxd6.} Qd7 15. O-O) 14... Nbd7 $14 {[%emt 0:05:43]} 15. O-O {[%emt 0:05:37]} (15. Qe3 {feels hotter.} Kd8 16. O-O Bxc4 17. g5) 15... O-O-O $1 {[%emt 0:01:03]} 16. e4 {[%emt 0:02:00]} (16. g5 $14 Nh5 17. Bh2) 16... h6 {[%emt 0:02:12]} (16... g5 $1 $11 17. Bxg5 h5) 17. Bf3 {[%emt 0:04:57]} (17. e5 $1 $16 {[%cal Re5f6]} dxe5 18. Bg3) 17... g5 $1 $11 {[%emt 0:02:21]} 18. Bg3 {[%emt 0:06:40]} h5 $1 {[%emt 0:00:39][%cal Bh6h5,Bh5g4][%mdl 32]} 19. Rfb1 $2 {[%emt 0:02:31]} (19. Bd1 $11 {and White has nothing to worry.} Qa3 20. e5 dxe5 21. Bf3 (21. gxh5 Nxh5 22. Bxh5 Rxh5 $14)) 19... hxg4 $19 {[%emt 0:06:51]} 20. Bd1 {[%emt 0:03:28]} Qa3 {[%emt 0:00:22]} 21. Rb3 {[%emt 0:01:23]} Qa5 {[%emt 0:00:39]} 22. e5 {[%emt 0:10:08]} dxe5 {[%emt 0:02:43]} 23. hxg4 {[%emt 0:07:33]} Rh3 {[%emt 0:00:53]} 24. Kg2 {[%emt 0:01:27]} Rdh8 {[%emt 0:00:33][%cal Of6d5] And now ...Nxd5! would win.} 25. Qf5 $2 {[%emt 0:03:28] [#]} (25. Bf3 $1 $15) 25... Rh1 $2 {[%emt 0:06:44]} (25... Nxd5 $1 $19 {[%mdl 512]} 26. cxd5 c4) 26. Bxe5 $11 {[%emt 0:01:37]} Rxd1 $2 {[%emt 0:03:57]} 27. Rxd1 $16 {[%emt 0:00:59]} Bxc4 $2 {[%emt 0:00:28][%mdl 8192]} 28. Nxc4 $18 {[%emt 0:00:44]} Qxa2+ {[%emt 0:00:10]} 29. Nd2 {[%emt 0:00:07]} Rf8 {[%emt 0:06:53]} 30. Bxf6 {[%emt 0:05:24]} Rxf6 {[%emt 0:00:27]} 31. Qb1 {[%emt 0:00:16]} Qa4 {[%emt 0:00:34]} 32. c4 {[%emt 0:00:19]} Rf4 {[%emt 0:00:39]} 33. Qa1 {[%emt 0:03:10]} Rxg4+ {[%emt 0:00:12]} 34. Kh3 $2 {[%emt 0:00:42]} (34. Rg3 Rxg3+ 35. Kxg3) 34... Rxc4 {[%emt 0:00:07] ...Rh4+ is the strong threat.} 35. Qxa4 {[%emt 0:00:32] Really sharp! White is more active.} ({But not} 35. Qh8+ $2 Kb7 36. Nxc4 Qxb3+ 37. Kh2 Qxd1 $19) 35... Rxa4 {[%emt 0:00:07]} 36. Nf1 {[%emt 0:00:55]} Nf6 {[%emt 0:05:16]} 37. d6 {[%emt 0:00:47]} e6 {[%emt 0:00:13]} 38. Kg2 {[%emt 0:01:16]} Kd7 {[%emt 0:00:20]} 39. Rh3 {[%emt 0:02:07]} (39. Ne3 $16) 39... Nd5 $1 $11 {[%emt 0:00:30]} 40. Rh7+ {[%emt 0:00:47]} Kxd6 {[%emt 0:00:06]} 41. Ne3 {[%emt 0:05:22]} Kc6 {[%emt 0:02:12]} (41... Rd4 $11 42. Rxd4 cxd4 43. Nxd5 Kxd5) 42. Nxd5 $16 {[%emt 0:01:12]} exd5 {[%emt 0:00:07]} 43. Rh6+ {[%emt 0:00:11]} Kb5 {[%emt 0:00:16]} 44. Rxd5 {[%emt 0:00:04]} g4 {[%emt 0:00:53]} 45. Rg5 {[%emt 0:00:20]} ({Better is} 45. Kf2 $16) 45... Rb4 $1 $11 {[%emt 0:02:41]} 46. Rgg6 {[%emt 0:01:38]} Ka4 {[%emt 0:04:48]} 47. Kf2 {[%emt 0:00:14]} Kb3 {[%emt 0:00:38]} 48. Ke3 {[%emt 0:00:52]} Kb2 {[%emt 0:00:48]} 49. Rh2+ {[%emt 0:03:09]} Ka3 {[%emt 0:00:39]} 50. Rg2 {[%emt 0:03:18]} a5 {[%emt 0:00:56]} 51. R2xg4 {[%emt 0:01:37]} (51. R6xg4 $5 {[%cal Re3d3]} b5 52. Rg5 $16) 51... Rxg4 {[%emt 0:01:47][%mdl 8192]} (51... b5 $11) 52. Rxg4 $14 {[%emt 0:00:06] KR-K3P} Kb3 {[%emt 0:00:44] [#]} 53. Rg6 $2 {[%emt 0:00:39]} (53. Kd2 $1 b5 54. Rg3+ Kb4 55. Rg5 Kc4 56. Kc2 Kd4 57. Kb3 b4 58. Ka4) 53... b5 $11 {[%emt 0:00:36]} 54. Rg5 {[%emt 0:00:11]} Kc4 {[%emt 0:00:46][%mdl 8192] [#]} (54... a4 $11) 55. Kd2 $1 {[%emt 0:00:42]} ({Worse is} 55. Rg4+ Kb3 $11) 55... b4 {[%emt 0:00:56]} 56. Kc2 {[%emt 0:00:26]} a4 {[%emt 0:00:24]} 57. Rg4+ {[%emt 0:01:26]} Kb5 {[%emt 0:00:26]} 58. Rh4 $2 {[%emt 0:02:29]} (58. Rg6 {mates} Ka5 59. Rc6 Kb5 60. Rc8 c4 61. Kb2 c3+ 62. Kb1 Kb6 63. Ra8) 58... c4 $2 {[%emt 0:01:25]} (58... Ka6 $18 59. Rh8 Kb7) 59. Rh5+ {[%emt 0:00:31] White mates.} Kb6 {[%emt 0:00:36]} 60. Kb2 {[%emt 0:02:23]} a3+ {[%emt 0:00:18]} 61. Ka2 {[%emt 0:02:05]} Kc6 {[%emt 0:00:20]} 62. Ra5 {[%emt 0:00:28]} Kb6 {[%emt 0:00:47]} 63. Ra8 {[%emt 0:01:17]} Kb5 {[%emt 0:00:26]} 64. Rc8 {[%emt 0:00:19] What a fight!  Weighted Error Value: White=0.53/Black=0.59} 1-0

[Event "Czech Open-GM 2022"]
[Site "Pardubice"]
[Date "2022.07.24"]
[Round "3.28"]
[White "Mondrzycki, Bartlomiej"]
[Black "Nurkiewicz, Maciej"]
[Result "0-1"]
[ECO "A45"]
[WhiteElo "2180"]
[BlackElo "2332"]
[Annotator "TA"]
[PlyCount "118"]
[EventDate "2022.07.22"]
[EventType "swiss"]
[EventCountry "CZE"]
[SourceTitle "playchess.com"]
[Source "ChessBase"]
[SourceQuality "1"]
[TimeControl "40/5400+30:1800+30"]

{[%evp 9,117,-9,-6,-6,-1,-6,-6,-10,12,2,7,3,13,12,22,0,61,58,60,46,43,37,35,0,33,33,59,12,84,90,119,27,125,115,146,133,133,150,219,214,217,196,193,155,157,163,162,160,166,166,203,198,266,259,283,284,273,182,300,191,242,170,168,166,169,167,521,161,368,345,256,197,182,204,183,42,220,119,168,0,0,0,0,0,0,-120,-100,-490,-482,-453,-451,-12846,-12846,-29986,-29987,-29987,-29988,-29993,-29994,-29994,-29992,-29992,-29992,-29992,-29993,-29997,-29998,-29998,-29999,-29999]} 1. d4 {[%emt 0:00:09]} Nf6 {[%emt 0:00:03]} 2. Bg5 {[%emt 0:00:03]} d5 {[%emt 0:01:18]} 3. Bxf6 {[%emt 0:00:11]} exf6 {[%emt 0:00:18]} 4. e3 {[%emt 0:00:12]} c6 {[%emt 0:07:20]} 5. Nd2 {[%emt 0:07:48]} f5 {[%emt 0:01:45]} 6. g3 {[%emt 0:03:30] D00: 1 d4 d5: Unusual lines.} Nd7 {[%emt 0:07:38]} 7. Bg2 {[%emt 0:04:28]} g6 {[%emt 0:04:40]} 8. Ne2 {[%emt 0:00:35] The position is equal.} Bg7 {[%emt 0:00:11]} 9. O-O {[%emt 0:00:21]} Nf6 {[%emt 0:03:10]} 10. c4 {[%emt 0:04:07]} dxc4 {[%emt 0:10:07]} 11. Nxc4 {[%emt 0:01:57]} Be6 {[%emt 0:00:07]} 12. Rc1 {[%emt 0:03:10] [#]} Bd5 $146 {[%emt 0:04:53]} (12... Nd5 $11) ({Predecessor:} 12... O-O 13. Nf4 Bd5 14. Nxd5 Nxd5 15. b4 Qd7 16. Qb3 Rfd8 17. a4 Rac8 18. Rfd1 Qe6 {1-0 (33) Paragua,M (2502)-Hakobyan,E (2190) Philadelphia 2021}) 13. Bxd5 {[%emt 0:16:41]} Nxd5 {[%emt 0:04:38]} 14. Qb3 $1 {[%emt 0:09:09]} Nb6 {[%emt 0:00:57]} 15. Nf4 {[%emt 0:09:00]} O-O {[%emt 0:07:36]} 16. Nd3 {[%emt 0:00:08]} Nxc4 {[%emt 0:01:07]} 17. Rxc4 {[%emt 0:00:18]} Qe7 {[%emt 0:01:33]} 18. Rfc1 {[%emt 0:01:12]} (18. Rb4 $14 {is superior.}) 18... Rab8 {[%emt 0:12:12]} (18... a5 $11 {keeps the balance.}) 19. Ra4 {[%emt 0:06:15]} a6 {[%emt 0:07:15]} 20. Nc5 {[%emt 0:00:15]} (20. Rb4 $1 $16) 20... Rfd8 {[%emt 0:04:50]} (20... a5 $1 $11 {remains equal.}) 21. Rb4 $16 {[%emt 0:02:46][%cal Oc5a6]} b5 {[%emt 0:03:15] ...a5 is the strong threat.} 22. Nxa6 {[%emt 0:00:31]} Rb6 {[%emt 0:00:07]} 23. Nc5 {[%emt 0:00:19]} f4 {[%emt 0:00:11]} (23... Qa7 $16 24. a4 bxa4 25. Qxa4 (25. Nxa4 Rxb4 26. Qxb4 f4 $16) (25. Rxa4 Qb8 $16) 25... Qxa4 26. Rxa4 Rxb2) 24. gxf4 $18 {[%emt 0:04:37]} Qh4 {[%emt 0:00:23]} 25. Qd1 {[%emt 0:00:45] Against Qg4+} g5 {[%emt 0:03:13]} 26. f5 {[%emt 0:07:12]} Qh3 {[%emt 0:03:09] Prevents Qf3.} 27. Qf1 {[%emt 0:02:07]} Qxf5 {[%emt 0:00:13]} 28. Qg2 {[%emt 0:00:03]} Rd6 {[%emt 0:03:20]} 29. Rb3 {[%emt 0:03:21]} Rb8 {[%emt 0:04:26]} 30. Ne4 {[%emt 0:01:01]} Re6 {[%emt 0:00:40]} (30... Rg6 $142 31. Rbc3 Qd5) 31. Ng3 {[%emt 0:00:05]} (31. Nxg5 Rg6 32. h4 f6 $11) 31... Qg6 {[%emt 0:00:28]} 32. Rbc3 {[%emt 0:05:16]} Rb6 {[%emt 0:00:28]} 33. Qf3 {[%emt 0:01:50] Inhibits h5.} Ra6 {[%emt 0:01:24]} (33... Bf8 {was called for.} 34. d5 cxd5) 34. a3 Bf8 (34... h6 $142 35. Nf5 Kh7) 35. Qf5 {[%emt 0:03:31]} b4 {[%emt 0:03:04]} 36. axb4 {[%emt 0:00:03] Black must now prevent b5.} Bxb4 {[%emt 0:00:05]} 37. Rc4 {[%emt 0:00:06]} Rb6 {[%emt 0:00:28]} (37... Bf8 {is a better chance.} 38. Qc2 Qxc2 39. R1xc2 (39. R4xc2 h6 $16) 39... Rb6) 38. R1c2 $2 {[%emt 0:00:56]} (38. d5) 38... Be7 $2 {[%emt 0:00:51]} (38... Qxf5 {keeps fighting.} 39. Nxf5 h5) 39. Qa5 {[%emt 0:03:01]} Rb8 {[%emt 0:01:49]} 40. Qa7 {[%emt 0:01:17]} Rd8 {[%emt 0:00:38]} 41. Qc7 {[%emt 0:07:32]} Rdd6 {[%emt 0:05:04]} 42. e4 {[%emt 0:02:47]} (42. Rc5 $18) 42... Bf8 $2 {[%emt 0:10:51]} (42... Rxe4 $14 43. Nxe4 Qxe4) 43. Re2 {[%emt 0:08:28]} (43. f3 $1 $18) 43... h5 {[%emt 0:04:51] [#]} (43... Re8 $16 {was worth a try.} 44. f3 g4) 44. Nf5 $2 {[%emt 0:08:20]} (44. f3 $1 $18) 44... Rxe4 $1 $11 {[%emt 0:00:05][%mdl 64] Remove Defender} 45. Rxe4 {[%emt 0:00:04]} Qxf5 {[%emt 0:00:06]} 46. Re3 {[%emt 0:00:38] Hoping for Rc5.} h4 {[%emt 0:01:59] And now ...Rf6 would win.} 47. Rxc6 {[%emt 0:04:05]} (47. Rc1 $11) 47... Rxd4 $40 {[%emt 0:02:56][%cal Bd6d4,Bd4d1,Bd1g1][%mdl 160] ( -> ...Rd1+). Black attacks with force.} 48. Qc8 $2 {[%emt 0:02:25][%mdl 8192]} (48. f3 $17 {is more resistant.} Qh3 49. Kf2 (49. Rc1 {leads to mate.} Rd2)) 48... Rd1+ $19 {[%emt 0:02:56]} 49. Kg2 {[%emt 0:00:02]} Qd5+ {[%emt 0:00:07]} ({Less strong is} 49... Qb5 50. Rc4 $16) 50. Kh3 {[%emt 0:01:28] [#]} (50. Rf3 $142 h3+ 51. Qxh3 Qxc6 52. Qf5) 50... Rg1 $1 {[%emt 0:00:22][%csl Gg1][%cal Rd5g2]} 51. f3 {[%emt 0:00:49]} Qd2 {[%emt 0:00:07][%csl Gg1,LRb2,LRe3][%cal Rd2g2] Black mates.} 52. Rg6+ {[%emt 0:00:44]} fxg6 {[%emt 0:01:45][%csl Gg1][%cal Rd2g2]} 53. Qe6+ {[%emt 0:00:28]} Kh7 {[%emt 0:00:26][%csl Gg1][%cal Rd2g2]} 54. Re2 {[%emt 0:00:12]} Qd1 {[%emt 0:01:04]} 55. Rf2 {[%emt 0:00:42]} Qd3 {[%emt 0:01:36]} 56. Qf7+ {[%emt 0:00:51]} Bg7 {[%emt 0:00:06]} 57. b3 {[%emt 0:00:34]} g4+ {[%emt 0:00:20]} 58. Kxh4 {[%emt 0:00:04]} Qd8+ {[%emt 0:00:06]} 59. Qf6 {[%emt 0:00:22]} Qxf6# {[%emt 0:00:05] Weighted Error Value: White=0.65/Black=0.32} 0-1

[Event "Czech Open-GM 2022"]
[Site "Pardubice"]
[Date "2022.07.24"]
[Round "3.29"]
[White "Mladek, Richard"]
[Black "Bokhnak, Timofey"]
[Result "1-0"]
[ECO "D31"]
[WhiteElo "2330"]
[BlackElo "2098"]
[Annotator "TA"]
[PlyCount "63"]
[EventDate "2022.07.22"]
[EventType "swiss"]
[EventCountry "CZE"]
[SourceTitle "playchess.com"]
[Source "ChessBase"]
[SourceQuality "1"]
[TimeControl "40/5400+30:1800+30"]

{[%evp 13,63,24,23,25,27,21,28,26,27,25,24,23,31,28,32,35,36,24,24,29,47,39,47,19,23,-9,0,-23,0,-21,-17,-11,-18,-29,0,-6,31,31,64,59,121,118,212,170,154,125,205,108,372,375,366,295]} 1. d4 {[%emt 0:00:02]} d5 {[%emt 0:00:16]} 2. c4 {[%emt 0:00:06]} e6 {[%emt 0:00:03]} 3. Nc3 {[%emt 0:00:05]} Be7 {[%emt 0:00:16]} 4. cxd5 {[%emt 0:01:34]} exd5 {[%emt 0:00:07]} 5. Bf4 {[%emt 0:00:25]} Nf6 {[%emt 0:00:37]} 6. e3 {[%emt 0:01:13]} O-O {[%emt 0:02:11]} 7. Bd3 {[%emt 0:01:40]} c6 {[%emt 0:03:00]} 8. h3 {[%emt 0:02:33] D35: Queen's Gambit Declined: Exchange Variation.} Bd6 {[%emt 0:02:12]} 9. Nge2 {[%emt 0:04:02]} Re8 {[%emt 0:02:06]} 10. Qc2 {[%emt 0:01:38] [#] White has an edge.} Qe7 $146 {[%emt 0:02:10]} ({Predecessor:} 10... b6 11. O-O-O Bxf4 12. Nxf4 Ba6 13. g4 Bxd3 14. Qxd3 Nbd7 15. Kb1 Qe7 16. Rc1 Rac8 {0-1 (38) Nebolsina,V (2310)-Gunina,V (2448) Moscow 2010}) 11. O-O {[%emt 0:04:17]} Nbd7 {[%emt 0:01:08][%cal Bb8d7,Bd7f8,Bf8e6,Be6g5,Bg5e6][%mdl 32]} 12. Rab1 {[%emt 0:07:58]} Nf8 {[%emt 0:08:10]} 13. Bxd6 {[%emt 0:02:09]} Qxd6 {[%emt 0:03:09]} 14. b4 {[%emt 0:00:43]} a6 {[%emt 0:00:09]} 15. Ng3 {[%emt 0:08:30]} Ne6 {[%emt 0:08:46]} 16. Na4 {[%emt 0:01:56]} Qc7 {[%emt 0:03:14]} 17. Nc5 {[%emt 0:07:29]} Ng5 {[%emt 0:01:56][%cal Oe8e3]} 18. h4 {[%emt 0:04:05]} Ne6 {[%emt 0:03:40]} 19. Rbe1 {[%emt 0:04:58]} h6 {[%emt 0:04:19]} 20. a3 {[%emt 0:05:51]} Qd8 {[%emt 0:01:10]} (20... Ng4 {is interesting.} 21. h5 Re7 22. Na4 Nf8) 21. f3 {[%emt 0:02:01] Against Ng4} a5 {[%emt 0:10:08]} 22. b5 {[%emt 0:08:49]} Nxc5 {[%emt 0:01:01]} 23. Qxc5 {[%emt 0:01:12]} Nd7 {[%emt 0:00:55]} 24. Qc2 {[%emt 0:00:50]} Qxh4 {[%emt 0:01:17]} 25. Nf5 {[%emt 0:00:11]} Qf6 {[%emt 0:00:43]} 26. e4 $1 {[%emt 0:00:26][%cal Be3e4,Be4e5][%mdl 1056] White has compensation.} Nf8 {[%emt 0:11:15]} ({Black should play} 26... Re6 $14) 27. e5 $16 {[%emt 0:00:40]} Qg5 {[%emt 0:00:55]} (27... Qd8 $16) 28. Nd6 {[%emt 0:01:12]} ({Worse is} 28. bxc6 Bxf5 29. Bxf5 (29. cxb7 Rab8 $11) 29... bxc6 $11) 28... Rd8 {[%emt 0:00:10]} 29. f4 $36 {[%emt 0:01:02][%mdl 2048] White is really pushing. White is much more active. The black rooks are badly placed.} Qh4 {[%emt 0:04:51]} (29... Qg3 $16 {was worth a try.}) 30. b6 {[%emt 0:02:28]} (30. bxc6 $18 bxc6 31. Qxc6) 30... Ne6 $2 {[%emt 0:02:55][%mdl 8192] [#]} (30... Qe7 $16) 31. Nf5 $18 {[%emt 0:01:00]} ({Weaker is} 31. Bh7+ Kf8 $16) 31... Qg4 {[%emt 0:03:42]} 32. Be2 {[%emt 0:00:35] Weighted Error Value: White=0.15 (very precise) /Black=0.36} 1-0